[Event "Early-Titled-Tuesday-Blitz-May-28-2024"]
[Site "Chess.com"]
[Date "2024.05.28"]
[Round "7"]
[White "guillembaches"]
[Black "aghasiyevkamal"]
[Result "1-0"]
[WhiteElo "2512"]
[BlackElo "2614"]
[TimeControl "180+1"]
[EndTime "9:18:08 PDT"]
[Termination "guillembaches won by resignation"]

1. d4 {[%clk 0:03:00.9]} 1... Nf6 {[%clk 0:02:54.7]} 2. Nf3 {[%clk 0:03:01.2]}
2... g6 {[%clk 0:02:54.5]} 3. Bg5 {[%clk 0:03:01.1]} 3... Bg7 {[%clk 0:02:54.6]}
4. Nbd2 {[%clk 0:03:01]} 4... d5 {[%clk 0:02:51.4]} 5. e3 {[%clk 0:03:00.7]}
5... O-O {[%clk 0:02:51.4]} 6. Be2 {[%clk 0:03:00.7]} 6... c5 {[%clk 0:02:49.5]}
7. c3 {[%clk 0:03:00.6]} 7... Qb6 {[%clk 0:02:45.5]} 8. Qb3 {[%clk 0:02:43.8]}
8... Nc6 {[%clk 0:02:37.8]} 9. O-O {[%clk 0:02:37.5]} 9... Bf5 {[%clk
0:02:28.7]} 10. dxc5 {[%clk 0:02:23.2]} 10... Qxc5 {[%clk 0:02:27.8]} 11. Nd4
{[%clk 0:02:22.5]} 11... Nxd4 {[%clk 0:02:14.2]} 12. cxd4 {[%clk 0:02:14.8]}
12... Qa5 {[%clk 0:01:56.4]} 13. Nf3 {[%clk 0:02:06.1]} 13... b6 {[%clk
0:01:43.6]} 14. Rfc1 {[%clk 0:01:58.6]} 14... Rac8 {[%clk 0:01:33.7]} 15. Qb5
{[%clk 0:01:49.1]} 15... Rxc1+ {[%clk 0:01:09.8]} 16. Rxc1 {[%clk 0:01:43.1]}
16... Qxa2 {[%clk 0:01:09.6]} 17. Rc7 {[%clk 0:01:30]} 17... Qa1+ {[%clk
0:01:01.6]} 18. Bf1 {[%clk 0:01:30.1]} 18... e6 {[%clk 0:00:44.3]} 19. h3 {[%clk
0:01:04.1]} 19... h6 {[%clk 0:00:30]} 20. Bf4 {[%clk 0:00:59.9]} 20... Ne4
{[%clk 0:00:29.7]} 21. g4 {[%clk 0:00:53]} 21... Qd1 {[%clk 0:00:20.5]} 22. Qe2
{[%clk 0:00:28.6]} 22... Qxe2 {[%clk 0:00:19.2]} 23. Bxe2 {[%clk 0:00:29.5]}
23... g5 {[%clk 0:00:19.7]} 24. Bh2 {[%clk 0:00:27.8]} 24... Bg6 {[%clk
0:00:18.2]} 25. Rxa7 {[%clk 0:00:27.4]} 25... Rc8 {[%clk 0:00:16.5]} 26. Bc7
{[%clk 0:00:26.3]} 26... f6 {[%clk 0:00:10.4]} 27. Ba6 {[%clk 0:00:25.7]} 27...
Rf8 {[%clk 0:00:07.9]} 28. Bxb6 {[%clk 0:00:24.1]} 28... f5 {[%clk 0:00:08.1]}
29. Bc5 {[%clk 0:00:19.7]} 29... Nxc5 {[%clk 0:00:07.7]} 30. dxc5 {[%clk
0:00:20.2]} 30... fxg4 {[%clk 0:00:08.2]} 31. Nd4 {[%clk 0:00:19.5]} 31... gxh3
{[%clk 0:00:06.9]} 32. Rxg7+ {[%clk 0:00:18]} 32... Kxg7 {[%clk 0:00:06.5]} 33.
Nxe6+ {[%clk 0:00:18.5]} 33... Kf7 {[%clk 0:00:07.4]} 34. Nxf8 {[%clk
0:00:18.8]} 34... Kxf8 {[%clk 0:00:08.3]} 35. c6 {[%clk 0:00:19.2]} 1-0

[Event "Early-Titled-Tuesday-Blitz-May-28-2024"]
[Site "Chess.com"]
[Date "2024.05.28"]
[Round "7"]
[White "jlf287"]
[Black "GrotBchess"]
[Result "1-0"]
[WhiteElo "2506"]
[BlackElo "2575"]
[TimeControl "180+1"]
[EndTime "9:18:13 PDT"]
[Termination "jlf287 won by resignation"]

1. d4 {[%clk 0:03:00.9]} 1... Nf6 {[%clk 0:01:43.7]} 2. c4 {[%clk 0:02:55.6]}
2... g6 {[%clk 0:01:43.4]} 3. Nc3 {[%clk 0:02:55.4]} 3... d5 {[%clk 0:01:43.5]}
4. Nf3 {[%clk 0:02:51.3]} 4... Bg7 {[%clk 0:01:42.7]} 5. Qb3 {[%clk 0:02:47.8]}
5... dxc4 {[%clk 0:01:41.5]} 6. Qxc4 {[%clk 0:02:47.7]} 6... Be6 {[%clk
0:01:42.1]} 7. Qd3 {[%clk 0:02:45.7]} 7... O-O {[%clk 0:01:40.9]} 8. e4 {[%clk
0:02:44.8]} 8... c5 {[%clk 0:01:38.9]} 9. d5 {[%clk 0:02:43.6]} 9... Bc8 {[%clk
0:01:34]} 10. Be2 {[%clk 0:02:41.4]} 10... Nbd7 {[%clk 0:01:32.5]} 11. O-O
{[%clk 0:02:40.4]} 11... Ng4 {[%clk 0:01:32.4]} 12. Qc2 {[%clk 0:02:35.2]} 12...
e6 {[%clk 0:01:28.1]} 13. Rd1 {[%clk 0:02:25.2]} 13... exd5 {[%clk 0:01:22.3]}
14. exd5 {[%clk 0:02:26.1]} 14... Nge5 {[%clk 0:01:21.3]} 15. Bf4 {[%clk
0:02:24.4]} 15... Nxf3+ {[%clk 0:01:20.9]} 16. Bxf3 {[%clk 0:02:25.3]} 16... Ne5
{[%clk 0:01:21.1]} 17. Be2 {[%clk 0:02:20.9]} 17... Bf5 {[%clk 0:01:18.9]} 18.
Qb3 {[%clk 0:02:19.5]} 18... b6 {[%clk 0:01:17.9]} 19. d6 {[%clk 0:02:16.5]}
19... Be6 {[%clk 0:01:16.2]} 20. Qa4 {[%clk 0:02:11.6]} 20... Qh4 {[%clk
0:01:10.3]} 21. g3 {[%clk 0:01:44.5]} 21... Qd8 {[%clk 0:01:02.7]} 22. Qe4
{[%clk 0:01:44.2]} 22... Nd7 {[%clk 0:00:59.9]} 23. Rd2 {[%clk 0:01:29.6]} 23...
a6 {[%clk 0:00:56.4]} 24. Nd5 {[%clk 0:01:27.4]} 24... Bf5 {[%clk 0:00:47.5]}
25. Ne7+ {[%clk 0:01:26.7]} 25... Kh8 {[%clk 0:00:42.4]} 26. Nxf5 {[%clk
0:01:26.8]} 26... gxf5 {[%clk 0:00:42.1]} 27. Qxf5 {[%clk 0:01:27.7]} 27... Re8
{[%clk 0:00:34.6]} 28. Bd3 {[%clk 0:01:03.5]} 28... Nf8 {[%clk 0:00:34.3]} 29.
Be4 {[%clk 0:01:01.5]} 29... Ra7 {[%clk 0:00:31]} 30. Bc6 {[%clk 0:00:57.5]}
30... Re6 {[%clk 0:00:24.2]} 31. Rad1 {[%clk 0:00:48.4]} 31... Rf6 {[%clk
0:00:18.7]} 32. Qh3 {[%clk 0:00:44.2]} 32... Re6 {[%clk 0:00:15.2]} 33. Bf3
{[%clk 0:00:37.8]} 33... b5 {[%clk 0:00:14.1]} 34. Bg4 {[%clk 0:00:37.6]} 34...
Rf6 {[%clk 0:00:12.2]} 35. Bg5 {[%clk 0:00:36.9]} 35... h6 {[%clk 0:00:10.1]}
36. Bxf6 {[%clk 0:00:36.3]} 36... Qxf6 {[%clk 0:00:10.2]} 37. d7 {[%clk
0:00:35.1]} 37... Qd8 {[%clk 0:00:09.7]} 38. Bf5 {[%clk 0:00:34.9]} 38... Kg8
{[%clk 0:00:06.5]} 39. Re2 {[%clk 0:00:34.9]} 39... Ra8 {[%clk 0:00:03.3]} 40.
Re8 {[%clk 0:00:33]} 40... Qf6 {[%clk 0:00:02]} 41. Rxa8 {[%clk 0:00:29.9]}
41... Qxb2 {[%clk 0:00:01.7]} 42. d8=Q {[%clk 0:00:27.7]} 1-0

[Event "Early-Titled-Tuesday-Blitz-May-28-2024"]
[Site "Chess.com"]
[Date "2024.05.28"]
[Round "7"]
[White "ccccvhhhj"]
[Black "RobertoJBM"]
[Result "0-1"]
[WhiteElo "2463"]
[BlackElo "2775"]
[TimeControl "180+1"]
[EndTime "9:18:13 PDT"]
[Termination "RobertoJBM won by checkmate"]

1. e4 {[%clk 0:03:00.9]} 1... c6 {[%clk 0:02:59.3]} 2. d4 {[%clk 0:03:00.9]}
2... d5 {[%clk 0:02:59.2]} 3. e5 {[%clk 0:03:01.5]} 3... Bf5 {[%clk 0:02:58.8]}
4. Nc3 {[%clk 0:03:01.9]} 4... e6 {[%clk 0:02:58.1]} 5. g4 {[%clk 0:03:02.2]}
5... Bg6 {[%clk 0:02:57.8]} 6. Nge2 {[%clk 0:03:02.8]} 6... f6 {[%clk
0:02:57.6]} 7. Nf4 {[%clk 0:03:00.5]} 7... fxe5 {[%clk 0:02:57]} 8. Nxg6 {[%clk
0:03:00.3]} 8... hxg6 {[%clk 0:02:56.6]} 9. dxe5 {[%clk 0:03:00.6]} 9... Nd7
{[%clk 0:02:52.3]} 10. Bf4 {[%clk 0:02:57.2]} 10... Bb4 {[%clk 0:02:42.4]} 11.
Qd3 {[%clk 0:02:45.9]} 11... Ne7 {[%clk 0:02:41.9]} 12. O-O-O {[%clk 0:02:44.6]}
12... Qa5 {[%clk 0:02:37.4]} 13. Kb1 {[%clk 0:02:32]} 13... O-O-O {[%clk
0:02:30.3]} 14. Bg3 {[%clk 0:02:24.2]} 14... g5 {[%clk 0:02:24.4]} 15. a3 {[%clk
0:01:45.8]} 15... Bxc3 {[%clk 0:02:22.1]} 16. Qxc3 {[%clk 0:01:46.7]} 16... Qxc3
{[%clk 0:02:20.3]} 17. bxc3 {[%clk 0:01:47.6]} 17... Ng6 {[%clk 0:02:18.1]} 18.
Re1 {[%clk 0:01:46.6]} 18... Rdf8 {[%clk 0:02:16.8]} 19. Bd3 {[%clk 0:01:46.5]}
19... Nf4 {[%clk 0:02:16.6]} 20. Kb2 {[%clk 0:01:32.4]} 20... Nc5 {[%clk
0:02:11.2]} 21. Re3 {[%clk 0:01:24.1]} 21... b5 {[%clk 0:02:06.2]} 22. Kc1
{[%clk 0:01:07.7]} 22... Kd7 {[%clk 0:01:11.3]} 23. Kd2 {[%clk 0:01:07.5]} 23...
a5 {[%clk 0:01:06]} 24. Rb1 {[%clk 0:00:53.9]} 24... Kc7 {[%clk 0:01:03.9]} 25.
Rg1 {[%clk 0:00:42.4]} 25... Rf7 {[%clk 0:00:57.7]} 26. Rh1 {[%clk 0:00:41.5]}
26... Nh3 {[%clk 0:00:55.7]} 27. Ke2 {[%clk 0:00:36.1]} 27... Rhf8 {[%clk
0:00:55.1]} 28. Rf1 {[%clk 0:00:35.6]} 28... Na4 {[%clk 0:00:53.2]} 29. Bg6
{[%clk 0:00:30.4]} 29... Nf4+ {[%clk 0:00:52.9]} 30. Bxf4 {[%clk 0:00:27.9]}
30... Rxf4 {[%clk 0:00:53.8]} 31. Rg3 {[%clk 0:00:24.9]} 31... Rh8 {[%clk
0:00:51.4]} 32. Rh1 {[%clk 0:00:24]} 32... Nc5 {[%clk 0:00:49.3]} 33. Ke3 {[%clk
0:00:20.3]} 33... Nd7 {[%clk 0:00:48.6]} 34. h4 {[%clk 0:00:18.6]} 34... Nxe5
{[%clk 0:00:44.5]} 35. Bh5 {[%clk 0:00:18.9]} 35... Re4+ {[%clk 0:00:41.9]} 36.
Kd2 {[%clk 0:00:18.1]} 36... gxh4 {[%clk 0:00:40.3]} 37. Rgh3 {[%clk 0:00:08.7]}
37... g6 {[%clk 0:00:32.8]} 38. f3 {[%clk 0:00:08.8]} 38... Rf4 {[%clk
0:00:28.5]} 39. Ke3 {[%clk 0:00:09.2]} 39... Rff8 {[%clk 0:00:28.2]} 40. f4
{[%clk 0:00:09.1]} 40... Nc4+ {[%clk 0:00:27.9]} 41. Kd4 {[%clk 0:00:09.1]}
41... gxh5 {[%clk 0:00:28.8]} 42. Rxh4 {[%clk 0:00:09.2]} 42... Rxf4+ {[%clk
0:00:29]} 43. Kc5 {[%clk 0:00:09.1]} 43... Ne5 {[%clk 0:00:27.4]} 44. gxh5
{[%clk 0:00:08.3]} 44... Nd7# {[%clk 0:00:26.9]} 0-1

[Event "Early-Titled-Tuesday-Blitz-May-28-2024"]
[Site "Chess.com"]
[Date "2024.05.28"]
[Round "7"]
[White "Pintacara"]
[Black "balack95"]
[Result "0-1"]
[WhiteElo "2624"]
[BlackElo "2514"]
[TimeControl "180+1"]
[EndTime "9:18:14 PDT"]
[Termination "balack95 won by resignation"]

1. d4 {[%clk 0:03:00.9]} 1... Nf6 {[%clk 0:02:59.4]} 2. c4 {[%clk 0:02:58.2]}
2... c6 {[%clk 0:02:55.8]} 3. Nc3 {[%clk 0:02:57.2]} 3... d5 {[%clk 0:02:56.5]}
4. Nf3 {[%clk 0:02:57.3]} 4... g6 {[%clk 0:02:56.4]} 5. Bf4 {[%clk 0:02:53.4]}
5... a6 {[%clk 0:02:54.8]} 6. e3 {[%clk 0:02:53.3]} 6... Bg7 {[%clk 0:02:54.7]}
7. c5 {[%clk 0:02:53.4]} 7... O-O {[%clk 0:02:53.5]} 8. Bd3 {[%clk 0:02:53.2]}
8... Bf5 {[%clk 0:02:51.6]} 9. h3 {[%clk 0:02:51.4]} 9... Bxd3 {[%clk
0:02:51.1]} 10. Qxd3 {[%clk 0:02:52.3]} 10... Nbd7 {[%clk 0:02:50.7]} 11. O-O
{[%clk 0:02:51.2]} 11... b5 {[%clk 0:02:48.2]} 12. cxb6 {[%clk 0:02:47]} 12...
Nxb6 {[%clk 0:02:48.6]} 13. Rfc1 {[%clk 0:02:44.3]} 13... Nfd7 {[%clk
0:02:39.4]} 14. Ne2 {[%clk 0:02:33.1]} 14... Rc8 {[%clk 0:02:15]} 15. Qxa6
{[%clk 0:02:28.5]} 15... Nc4 {[%clk 0:02:15.2]} 16. b3 {[%clk 0:02:22.6]} 16...
e5 {[%clk 0:01:54.4]} 17. bxc4 {[%clk 0:02:10.8]} 17... exf4 {[%clk 0:01:53.9]}
18. Nxf4 {[%clk 0:02:11.1]} 18... Nb6 {[%clk 0:01:22.4]} 19. cxd5 {[%clk
0:02:03.8]} 19... cxd5 {[%clk 0:01:22.6]} 20. Rxc8 {[%clk 0:01:59.5]} 20... Nxc8
{[%clk 0:01:22]} 21. Rc1 {[%clk 0:01:56.2]} 21... Bh6 {[%clk 0:01:00]} 22. Nxd5
{[%clk 0:01:43.8]} 22... Nd6 {[%clk 0:00:53.6]} 23. Ne5 {[%clk 0:01:35]} 23...
Ne4 {[%clk 0:00:50.5]} 24. Qc6 {[%clk 0:00:46.3]} 24... Qh4 {[%clk 0:00:41.6]}
25. Ne7+ {[%clk 0:00:44.9]} 25... Kg7 {[%clk 0:00:32.3]} 26. Rf1 {[%clk
0:00:15.5]} 26... Nxf2 {[%clk 0:00:32.4]} 27. Qf3 {[%clk 0:00:12.6]} 27... Nxh3+
{[%clk 0:00:30.4]} 28. Qxh3 {[%clk 0:00:08.3]} 28... Qxe7 {[%clk 0:00:31]} 29.
Ng4 {[%clk 0:00:07.5]} 29... Bg5 {[%clk 0:00:30.6]} 30. Qf3 {[%clk 0:00:05.4]}
30... h5 {[%clk 0:00:27.9]} 31. Ne5 {[%clk 0:00:05.8]} 31... f6 {[%clk
0:00:28.4]} 32. Nc4 {[%clk 0:00:05.2]} 32... Rc8 {[%clk 0:00:27.7]} 33. Rc1
{[%clk 0:00:03.2]} 33... Rd8 {[%clk 0:00:27.1]} 34. Kf2 {[%clk 0:00:03.5]} 34...
Rxd4 {[%clk 0:00:27]} 35. exd4 {[%clk 0:00:03.7]} 35... Bxc1 {[%clk 0:00:27.6]}
36. Ne3 {[%clk 0:00:03.9]} 36... Bb2 {[%clk 0:00:25.2]} 37. d5 {[%clk 0:00:04]}
37... Bd4 {[%clk 0:00:25.3]} 38. Ke2 {[%clk 0:00:04.7]} 38... Qc5 {[%clk
0:00:25.5]} 39. Kd3 {[%clk 0:00:05.3]} 39... Be5 {[%clk 0:00:25.3]} 40. Nc4
{[%clk 0:00:04.5]} 40... Qd4+ {[%clk 0:00:25.3]} 41. Ke2 {[%clk 0:00:04.6]}
41... Qxc4+ {[%clk 0:00:25.8]} 0-1

[Event "Early-Titled-Tuesday-Blitz-May-28-2024"]
[Site "Chess.com"]
[Date "2024.05.28"]
[Round "7"]
[White "Pertinhez76"]
[Black "jraosam"]
[Result "1-0"]
[WhiteElo "2268"]
[BlackElo "2101"]
[TimeControl "180+1"]
[EndTime "9:18:15 PDT"]
[Termination "Pertinhez76 won by resignation"]

1. d4 {[%clk 0:02:59.7]} 1... d5 {[%clk 0:02:59.4]} 2. Bf4 {[%clk 0:02:59.4]}
2... Nf6 {[%clk 0:02:58.3]} 3. e3 {[%clk 0:02:59.6]} 3... e6 {[%clk 0:02:58.6]}
4. Nf3 {[%clk 0:02:59.2]} 4... Bd6 {[%clk 0:02:59.2]} 5. Ne5 {[%clk 0:02:58.9]}
5... O-O {[%clk 0:02:59]} 6. Bg3 {[%clk 0:02:58.8]} 6... c5 {[%clk 0:02:59.4]}
7. c3 {[%clk 0:02:56.3]} 7... Qc7 {[%clk 0:02:59]} 8. Nd2 {[%clk 0:02:54.3]}
8... Nbd7 {[%clk 0:02:57.6]} 9. f4 {[%clk 0:02:53.9]} 9... Ne4 {[%clk
0:02:44.9]} 10. Bd3 {[%clk 0:02:52.9]} 10... f5 {[%clk 0:02:43.3]} 11. O-O
{[%clk 0:02:47.3]} 11... Nxe5 {[%clk 0:02:41.3]} 12. dxe5 {[%clk 0:02:45.8]}
12... Be7 {[%clk 0:02:40.3]} 13. Bxe4 {[%clk 0:02:45.1]} 13... dxe4 {[%clk
0:02:34.3]} 14. Qe1 {[%clk 0:02:44.8]} 14... b6 {[%clk 0:02:33.6]} 15. Bh4
{[%clk 0:02:43.7]} 15... Ba6 {[%clk 0:02:32.7]} 16. Bxe7 {[%clk 0:02:43.8]}
16... Qxe7 {[%clk 0:02:32]} 17. c4 {[%clk 0:02:42.7]} 17... Rfd8 {[%clk
0:02:31.5]} 18. b3 {[%clk 0:02:42.6]} 18... Rd3 {[%clk 0:02:31.4]} 19. Rf2
{[%clk 0:02:37.6]} 19... Rad8 {[%clk 0:02:31.3]} 20. Nf1 {[%clk 0:02:36.8]}
20... Qd7 {[%clk 0:02:27.1]} 21. h3 {[%clk 0:02:35.6]} 21... Rd1 {[%clk
0:02:26.1]} 22. Rxd1 {[%clk 0:02:34.8]} 22... Qxd1 {[%clk 0:02:27]} 23. Qxd1
{[%clk 0:02:35.2]} 23... Rxd1 {[%clk 0:02:27.9]} 24. Rd2 {[%clk 0:02:35.1]}
24... Rxd2 {[%clk 0:02:27.7]} 25. Nxd2 {[%clk 0:02:36]} 25... Kf7 {[%clk
0:02:25.3]} 26. g4 {[%clk 0:02:36.5]} 26... g6 {[%clk 0:02:22.5]} 27. Kf2 {[%clk
0:02:36.5]} 27... Bb7 {[%clk 0:02:20.9]} 28. Kg3 {[%clk 0:02:36.7]} 28... h6
{[%clk 0:02:19.7]} 29. h4 {[%clk 0:02:35.7]} 29... Bc6 {[%clk 0:02:16.9]} 30. h5
{[%clk 0:02:34]} 30... Be8 {[%clk 0:02:15.1]} 31. Kh4 {[%clk 0:02:24.5]} 31...
Kg7 {[%clk 0:02:09.3]} 32. hxg6 {[%clk 0:02:21.9]} 32... Kxg6 {[%clk 0:02:04.8]}
33. Nf1 {[%clk 0:02:20.8]} 33... b5 {[%clk 0:02:00.2]} 34. Ng3 {[%clk
0:02:20.6]} 34... bxc4 {[%clk 0:01:58.7]} 35. bxc4 {[%clk 0:02:21.1]} 35... Ba4
{[%clk 0:01:58.2]} 36. Nh5 {[%clk 0:02:12.8]} 36... Bc2 {[%clk 0:01:16.4]} 37.
gxf5+ {[%clk 0:02:08.7]} 37... exf5 {[%clk 0:01:16.2]} 38. Nf6 {[%clk 0:02:07]}
38... Bd3 {[%clk 0:01:15.4]} 39. Nd7 {[%clk 0:01:48.4]} 39... Bxc4 {[%clk
0:01:12.6]} 40. a3 {[%clk 0:01:47.3]} 40... Be2 {[%clk 0:01:10]} 41. Nxc5 {[%clk
0:01:46.7]} 41... Kf7 {[%clk 0:01:07.5]} 42. Nb3 {[%clk 0:01:30.9]} 42... Bc4
{[%clk 0:01:04.1]} 43. Nd4 {[%clk 0:01:30.8]} 43... Kg6 {[%clk 0:01:01.8]} 44.
Nc6 {[%clk 0:01:26.4]} 44... Kf7 {[%clk 0:00:36.7]} 45. Nxa7 {[%clk 0:01:19.5]}
45... Ke6 {[%clk 0:00:37.1]} 46. Nc6 {[%clk 0:01:16.2]} 46... Kd7 {[%clk
0:00:33.5]} 47. Nd4 {[%clk 0:01:16]} 47... Bf7 {[%clk 0:00:29.1]} 48. Nxf5
{[%clk 0:00:54]} 48... Kc6 {[%clk 0:00:28.5]} 49. Nxh6 {[%clk 0:00:50.7]} 49...
Bg6 {[%clk 0:00:22.7]} 50. Kg5 {[%clk 0:00:50.3]} 50... Bh7 {[%clk 0:00:22.4]}
51. Kf6 {[%clk 0:00:50.4]} 51... Kd5 {[%clk 0:00:22.7]} 52. e6 {[%clk
0:00:50.1]} 1-0

[Event "Early-Titled-Tuesday-Blitz-May-28-2024"]
[Site "Chess.com"]
[Date "2024.05.28"]
[Round "7"]
[White "NovakRatko"]
[Black "VacheH009"]
[Result "0-1"]
[WhiteElo "2376"]
[BlackElo "2546"]
[TimeControl "180+1"]
[EndTime "9:18:17 PDT"]
[Termination "VacheH009 won by resignation"]

1. d4 {[%clk 0:03:00.9]} 1... Nf6 {[%clk 0:02:55.4]} 2. c4 {[%clk 0:03:00.4]}
2... g6 {[%clk 0:02:53.6]} 3. Nc3 {[%clk 0:03:00.1]} 3... Bg7 {[%clk 0:02:54.2]}
4. e4 {[%clk 0:03:00.2]} 4... d6 {[%clk 0:02:54.9]} 5. f3 {[%clk 0:03:00.8]}
5... O-O {[%clk 0:02:55.1]} 6. Be3 {[%clk 0:03:01.4]} 6... e5 {[%clk 0:02:49.6]}
7. Nge2 {[%clk 0:02:59.5]} 7... exd4 {[%clk 0:02:42.6]} 8. Nxd4 {[%clk
0:02:59.4]} 8... Nc6 {[%clk 0:02:42.6]} 9. Nxc6 {[%clk 0:02:59.6]} 9... bxc6
{[%clk 0:02:43.5]} 10. Qd2 {[%clk 0:02:59.9]} 10... Nd7 {[%clk 0:02:40.4]} 11.
Be2 {[%clk 0:02:57.3]} 11... Ne5 {[%clk 0:02:22.1]} 12. O-O {[%clk 0:02:56.6]}
12... f5 {[%clk 0:02:21.7]} 13. c5 {[%clk 0:02:45.6]} 13... Qe7 {[%clk
0:02:05.2]} 14. Rad1 {[%clk 0:02:24.6]} 14... dxc5 {[%clk 0:01:58.1]} 15. Na4
{[%clk 0:02:23.8]} 15... Nd7 {[%clk 0:01:52.9]} 16. Bc4+ {[%clk 0:02:20.9]}
16... Kh8 {[%clk 0:01:52.3]} 17. Qa5 {[%clk 0:02:17.6]} 17... fxe4 {[%clk
0:01:43.6]} 18. Rxd7 {[%clk 0:02:07.1]} 18... Qxd7 {[%clk 0:01:21.8]} 19. Qxc5
{[%clk 0:02:06.9]} 19... exf3 {[%clk 0:01:16.5]} 20. gxf3 {[%clk 0:02:01.7]}
20... Qf5 {[%clk 0:01:05.6]} 21. Qxc6 {[%clk 0:01:40.3]} 21... Bd7 {[%clk
0:01:04.4]} 22. Qa6 {[%clk 0:01:36.9]} 22... Rae8 {[%clk 0:00:48.3]} 23. Bxa7
{[%clk 0:01:15.1]} 23... Ra8 {[%clk 0:00:44.2]} 24. Kh1 {[%clk 0:01:02.5]} 24...
Qc2 {[%clk 0:00:29.9]} 25. b3 {[%clk 0:01:00.8]} 25... Qxa2 {[%clk 0:00:24.2]}
26. Qb7 {[%clk 0:00:57.4]} 26... Bxa4 {[%clk 0:00:22.5]} 27. Bc5 {[%clk
0:00:52.5]} 27... Bd7 {[%clk 0:00:16.3]} 28. Bxf8 {[%clk 0:00:38.1]} 28... Rxf8
{[%clk 0:00:17.2]} 29. Qxc7 {[%clk 0:00:28]} 29... Bh3 {[%clk 0:00:16.9]} 30.
Rg1 {[%clk 0:00:27.8]} 30... Qf2 {[%clk 0:00:17.4]} 31. Bd5 {[%clk 0:00:26.5]}
31... Bd4 {[%clk 0:00:12.8]} 32. Qc1 {[%clk 0:00:14.5]} 32... Qxg1+ {[%clk
0:00:11.1]} 33. Qxg1 {[%clk 0:00:14.7]} 33... Bxg1 {[%clk 0:00:12]} 34. Kxg1
{[%clk 0:00:15.5]} 34... Bf5 {[%clk 0:00:11.6]} 35. Kf2 {[%clk 0:00:14.7]} 35...
Kg7 {[%clk 0:00:11.8]} 36. Ke3 {[%clk 0:00:13.9]} 36... Kf6 {[%clk 0:00:12.4]}
37. Kd4 {[%clk 0:00:14]} 37... Be6 {[%clk 0:00:13]} 0-1

[Event "Early-Titled-Tuesday-Blitz-May-28-2024"]
[Site "Chess.com"]
[Date "2024.05.28"]
[Round "7"]
[White "TigrVShlyape"]
[Black "DumbKing75"]
[Result "1/2-1/2"]
[WhiteElo "2910"]
[BlackElo "2696"]
[TimeControl "180+1"]
[EndTime "9:18:19 PDT"]
[Termination "Game drawn by repetition"]

1. e4 {[%clk 0:02:57.3]} 1... c5 {[%clk 0:03:00.3]} 2. Nf3 {[%clk 0:02:56.6]}
2... d6 {[%clk 0:03:00.7]} 3. d4 {[%clk 0:02:56.4]} 3... cxd4 {[%clk 0:03:01.6]}
4. Nxd4 {[%clk 0:02:56.5]} 4... Nf6 {[%clk 0:03:02.5]} 5. Nc3 {[%clk 0:02:56.5]}
5... Nc6 {[%clk 0:03:03.4]} 6. Be2 {[%clk 0:02:55.2]} 6... e5 {[%clk 0:03:01.2]}
7. Nf3 {[%clk 0:02:54.9]} 7... h6 {[%clk 0:03:01.2]} 8. O-O {[%clk 0:02:55.2]}
8... Be7 {[%clk 0:02:53.7]} 9. h3 {[%clk 0:02:54.2]} 9... O-O {[%clk 0:02:53.5]}
10. Re1 {[%clk 0:02:48.6]} 10... Be6 {[%clk 0:02:53.4]} 11. Bf1 {[%clk
0:02:48.9]} 11... Qc7 {[%clk 0:02:26.5]} 12. Nb5 {[%clk 0:02:45.3]} 12... Qb8
{[%clk 0:02:25.1]} 13. c4 {[%clk 0:02:45.4]} 13... a6 {[%clk 0:02:10.2]} 14. Nc3
{[%clk 0:02:45.3]} 14... Bd8 {[%clk 0:02:10.8]} 15. b3 {[%clk 0:02:26.2]} 15...
Bb6 {[%clk 0:02:03.6]} 16. Be3 {[%clk 0:02:21.6]} 16... Bxe3 {[%clk 0:01:31]}
17. Rxe3 {[%clk 0:02:20.5]} 17... Rd8 {[%clk 0:01:31.3]} 18. Qd2 {[%clk
0:02:19.7]} 18... Qa7 {[%clk 0:01:18.1]} 19. Rd1 {[%clk 0:02:18.3]} 19... Rd7
{[%clk 0:01:17.8]} 20. g3 {[%clk 0:02:13.4]} 20... Ne8 {[%clk 0:01:06.9]} 21.
Nd5 {[%clk 0:02:07.2]} 21... Bxd5 {[%clk 0:01:05.3]} 22. cxd5 {[%clk 0:02:06.5]}
22... Ne7 {[%clk 0:01:03.8]} 23. Rc3 {[%clk 0:02:04.9]} 23... Rc8 {[%clk
0:01:01]} 24. Rxc8 {[%clk 0:02:03.8]} 24... Nxc8 {[%clk 0:01:01.9]} 25. Rc1
{[%clk 0:01:58.2]} 25... Qb8 {[%clk 0:01:02.4]} 26. b4 {[%clk 0:01:51.2]} 26...
Rc7 {[%clk 0:01:02.4]} 27. Nh4 {[%clk 0:01:41]} 27... Rxc1 {[%clk 0:00:57.9]}
28. Qxc1 {[%clk 0:01:40.4]} 28... Qc7 {[%clk 0:00:58.8]} 29. Qd2 {[%clk
0:01:37.3]} 29... Ne7 {[%clk 0:00:40.9]} 30. Ng2 {[%clk 0:01:32.7]} 30... f5
{[%clk 0:00:26.8]} 31. exf5 {[%clk 0:01:25.6]} 31... Nxf5 {[%clk 0:00:27.7]} 32.
Ne3 {[%clk 0:01:15.7]} 32... Nd4 {[%clk 0:00:20.6]} 33. Bg2 {[%clk 0:01:12.9]}
33... Nf6 {[%clk 0:00:21.1]} 34. Kh2 {[%clk 0:01:12.3]} 34... g6 {[%clk
0:00:10.2]} 35. h4 {[%clk 0:01:10.5]} 35... Kg7 {[%clk 0:00:10.1]} 36. Kh1
{[%clk 0:01:09.4]} 36... h5 {[%clk 0:00:08.5]} 37. Kh2 {[%clk 0:01:08.9]} 37...
Qf7 {[%clk 0:00:06]} 38. Qc3 {[%clk 0:01:01.7]} 38... Ng4+ {[%clk 0:00:03.4]}
39. Nxg4 {[%clk 0:01:01.4]} 39... hxg4 {[%clk 0:00:04.3]} 40. Qe3 {[%clk
0:01:00.5]} 40... Qf5 {[%clk 0:00:02.9]} 41. Be4 {[%clk 0:00:58.7]} 41... Qf6
{[%clk 0:00:03.1]} 42. Kg2 {[%clk 0:00:58.7]} 42... Qf7 {[%clk 0:00:03.2]} 43.
Qg5 {[%clk 0:00:57.6]} 43... Nf3 {[%clk 0:00:01.7]} 44. Qxg4 {[%clk 0:00:56.8]}
44... Nd2 {[%clk 0:00:01.8]} 45. Bd3 {[%clk 0:00:55.6]} 45... Qxd5+ {[%clk
0:00:02.1]} 46. Kh2 {[%clk 0:00:52]} 46... Qxd3 {[%clk 0:00:02.6]} 47. Qd7+
{[%clk 0:00:50.9]} 47... Kh6 {[%clk 0:00:03.2]} 48. Qd8 {[%clk 0:00:50.2]} 48...
Nf3+ {[%clk 0:00:03.3]} 49. Kg2 {[%clk 0:00:49.4]} 49... Kg7 {[%clk 0:00:03.8]}
50. Qe7+ {[%clk 0:00:49]} 50... Kg8 {[%clk 0:00:04.3]} 51. Qe8+ {[%clk
0:00:48.8]} 51... Kg7 {[%clk 0:00:04.7]} 52. Qe7+ {[%clk 0:00:49.1]} 52... Kg8
{[%clk 0:00:05.3]} 53. Qe8+ {[%clk 0:00:48.1]} 53... Kg7 {[%clk 0:00:05.9]} 54.
Qe7+ {[%clk 0:00:48.5]} 1/2-1/2